fUST/lending_fUST_20250811
["ID","MTS","AMOUNT","RATE_DAILY","PERIOD"]
[378577224,1754915465839,-994.32,0.00020186,2]
[378577225,1754915465848,-460.0,0.00020186,2]
[378577226,1754915465858,-460.0,0.00020186,2]
[378577227,1754915465868,-460.0,0.00020186,2]
[378577228,1754915465878,-382.458308,0.00020187,2]
[378577229,1754915465887,-382.458308,0.00020187,2]
[378577230,1754915465896,-580.735783,0.00020187,2]
[378577231,1754915465907,-460.0,0.00020189,2]
[378577232,1754915465920,-460.0,0.00020189,2]
[378577233,1754915465932,-460.0,0.00020189,2]
[378577234,1754915465942,-460.0,0.00020189,2]
[378577235,1754915465953,-460.0,0.00020189,2]
[378577236,1754915465963,-460.0,0.00020189,2]
[378577237,1754915465972,-460.0,0.00020189,2]
[378577238,1754915465981,-460.0,0.00020189,2]
[378577239,1754915465993,-465.47586545,0.00020189,2]
[378577240,1754915466002,-460.0,0.00020189,2]
[378577241,1754915466012,-761.72,0.00020189,2]
[378577242,1754915466021,-460.0,0.00020189,2]
[378577243,1754915466030,-460.0,0.00020189,2]
[378577244,1754915466040,-460.0,0.00020189,2]
[378577245,1754915466049,-460.0,0.00020189,2]
[378577246,1754915466058,-519.77,0.00020189,2]
[378577247,1754915466068,-462.0,0.00020189,2]
[378577248,1754915466078,-460.0,0.00020189,2]
[378577249,1754915466087,-460.0,0.00020189,2]
[378577250,1754915466096,-534.6,0.00020189,2]
[378577251,1754915466106,-460.0,0.00020189,2]
[378577252,1754915466116,-498.0349588,0.00020189,2]
[378577253,1754915466125,-460.0,0.00020189,2]
[378577254,1754915466134,-460.0,0.00020189,2]
[378577255,1754915466144,-460.0,0.00020189,2]
[378577256,1754915466153,-460.0,0.00020189,2]
[378577257,1754915466163,-462.25,0.00020189,2]
[378577258,1754915466173,-460.0,0.00020189,2]
[378577259,1754915466182,-204.753215,0.00020189,2]
[378577260,1754915466191,-460.0,0.00020189,2]
[378577261,1754915466201,-478.44,0.00020189,2]
[378577262,1754915466210,-467.58554483,0.00020189,2]
[378577263,1754915466219,-460.0,0.00020189,2]
[378577264,1754915466228,-460.0,0.00020189,2]
[378577265,1754915466238,-460.0,0.00020189,2]
[378577266,1754915466248,-484.16582763,0.00020189,2]
[378577267,1754915466257,-460.0,0.00020189,2]
[378577268,1754915466268,-465.54300267,0.00020189,2]
[378577269,1754915466277,-460.0,0.00020189,2]
[378577270,1754915466287,-460.0,0.00020189,2]
[378577271,1754915466297,-460.0,0.00020189,2]
[378577272,1754915466306,-460.0,0.00020189,2]
[378577273,1754915466316,-460.0,0.00020189,2]
[378577274,1754915466326,-460.0,0.00020189,2]
[378577275,1754915466336,-460.0,0.00020189,2]
[378577276,1754915466346,-460.0,0.00020189,2]
[378577277,1754915466357,-1349.07,0.00020189,2]
[378577278,1754915466366,-460.0,0.00020189,2]
[378577279,1754915466376,-460.0,0.00020189,2]
[378577280,1754915466386,-460.0,0.00020189,2]
[378577281,1754915466396,-460.0,0.00020189,2]
[378577282,1754915466406,-460.0,0.00020189,2]
[378577283,1754915466416,-460.0,0.00020189,2]
[378577284,1754915466426,-460.0,0.00020189,2]
[378577285,1754915466436,-460.0,0.00020189,2]
[378577286,1754915466446,-460.0,0.00020189,2]
[378577287,1754915466456,-460.0,0.00020189,2]
[378577288,1754915466466,-460.0,0.00020189,2]
[378577289,1754915466475,-866.47,0.00020189,2]
[378577290,1754915466485,-890.67,0.00020189,2]
[378577291,1754915466495,-460.0,0.00020189,2]
[378577292,1754915466505,-462.14163462,0.00020189,2]
[378577293,1754915466515,-516.79,0.00020189,2]
[378577294,1754915466524,-460.0,0.00020189,2]
[378577295,1754915466534,-460.0,0.00020189,2]
[378577296,1754915466543,-460.0,0.00020189,2]
[378577297,1754915466553,-271.93698071,0.00020189,2]
[378577298,1754915466563,-494.0,0.00020189,2]
[378577299,1754915466573,-460.0,0.00020189,2]
[378577300,1754915466583,-460.0,0.00020189,2]
[378577301,1754915466592,-481.84188262,0.00020189,2]
[378577302,1754915466602,-460.0,0.00020189,2]
[378577303,1754915466614,-460.0,0.00020189,2]
[378577304,1754915466624,-343.65240613,0.00020189,2]
[378577305,1754915466634,-460.0,0.00020189,2]
[378577306,1754915466644,-1081.07,0.00020189,2]
[378577307,1754915466654,-460.0,0.00020189,2]
[378577308,1754915466663,-607.11,0.00020189,2]
[378577309,1754915466673,-460.0,0.00020189,2]
[378577310,1754915466683,-460.0,0.00020189,2]
[378577311,1754915466692,-781.16,0.00020189,2]
[378577312,1754915466701,-460.0,0.00020189,2]
[378577313,1754915466711,-460.0,0.00020189,2]
[378577314,1754915466720,-460.0,0.00020189,2]
[378577315,1754915466730,-460.0,0.00020189,2]
[378577316,1754915466740,-460.0,0.00020189,2]
[378577317,1754915466750,-1497.45,0.00020189,2]
[378577318,1754915466760,-460.0,0.00020189,2]
[378577319,1754915466770,-2565.12,0.00020189,2]
[378577320,1754915466780,-460.0,0.00020189,2]
[378577321,1754915466790,-460.0,0.00020189,2]
[378577322,1754915466799,-460.0,0.00020189,2]
[378577323,1754915466809,-460.0,0.00020189,2]
[378577324,1754915466821,-460.0,0.00020189,2]
[378577325,1754915466831,-460.0,0.00020189,2]
[378577326,1754915466842,-456.27432307,0.00020189,2]
[378577327,1754915466854,-460.0,0.00020189,2]
[378577328,1754915466863,-3067.95,0.00020189,2]
[378577329,1754915466876,-788.63,0.00020189,2]
[378577330,1754915466885,-367.42345262,0.00020189,2]
[378577331,1754915466894,-460.0,0.00020189,2]
[378577332,1754915466903,-460.0,0.00020189,2]
[378577333,1754915466916,-460.0,0.00020189,2]
[378577334,1754915466926,-460.0,0.00020189,2]
[378577335,1754915466935,-465.02924626,0.00020189,2]
[378577336,1754915466944,-151.0,0.00020189,2]
[378577337,1754915466954,-460.0,0.00020189,2]
[378577338,1754915466964,-804.53,0.00020189,2]
[378577339,1754915466973,-460.0,0.00020189,2]
[378577340,1754915466982,-2224.37,0.00020189,2]
[378577341,1754915466992,-460.0,0.00020189,2]
[378577342,1754915467001,-1615.44,0.00020189,2]
[378577343,1754915467011,-1000.0,0.00020189,2]
[378577344,1754915467021,-460.0,0.00020189,2]
[378577345,1754915467030,-460.0,0.00020189,2]
[378577346,1754915467039,-151.0,0.00020189,2]
[378577347,1754915467049,-460.0,0.00020189,2]
[378577348,1754915467059,-1205.26,0.00020189,2]
[378577349,1754915467068,-293.074157,0.00020189,2]
[378577350,1754915467078,-936.33,0.00020189,2]
[378577351,1754915467087,-461.4589706,0.00020189,2]
[378577352,1754915467096,-460.0,0.00020189,2]
[378577353,1754915467105,-460.0,0.00020189,2]
[378577354,1754915467115,-460.0,0.00020189,2]
[378577355,1754915467124,-460.0,0.00020189,2]
[378577356,1754915467133,-460.0,0.00020189,2]
[378577357,1754915467142,-472.68,0.00020189,2]
[378577358,1754915467151,-1011.19,0.00020189,2]
[378577359,1754915467161,-460.0,0.00020189,2]
[378577360,1754915467174,-460.0,0.00020189,2]
[378577361,1754915467184,-515.75,0.00020189,2]
[378577362,1754915467193,-228.35510715,0.00020189,2]
[378577363,1754915467203,-460.0,0.00020189,2]
[378577364,1754915467212,-460.0,0.00020189,2]
[378577365,1754915467221,-4042.93,0.00020189,2]
[378577366,1754915467231,-460.0,0.00020189,2]
[378577367,1754915467240,-460.0,0.00020189,2]
[378577368,1754915467250,-873.21,0.00020189,2]
[378577369,1754915467260,-460.0,0.00020189,2]
[378577370,1754915467269,-1632.07,0.00020189,2]
[378577371,1754915467281,-562.65,0.00020189,2]
[378577372,1754915467291,-460.0,0.00020189,2]
[378577373,1754915467301,-460.0,0.00020189,2]
[378577374,1754915467311,-460.0,0.00020189,2]
[378577375,1754915467320,-460.0,0.00020189,2]
[378577376,1754915467330,-460.0,0.00020189,2]
[378577377,1754915467339,-460.0,0.00020189,2]
[378577378,1754915467348,-724.2,0.00020189,2]
[378577379,1754915467359,-460.0,0.00020189,2]
[378577380,1754915467369,-460.0,0.00020189,2]
[378577381,1754915467379,-460.0,0.00020189,2]
[378577382,1754915467389,-460.0,0.00020189,2]
[378577383,1754915467399,-152.920295,0.00020217,2]
[378577384,1754915467408,-427.31556,0.00020218,2]
[378577385,1754915467417,-427.31556,0.00020218,2]
[378577386,1754915467427,-332.452599,0.00020218,2]
[378577387,1754915467437,-332.452599,0.00020218,2]
[378577388,1754915467446,-151.0,0.00020219,2]
[378577389,1754915467456,-320.834265,0.00020219,2]
[378577390,1754915467465,-320.834265,0.00020219,2]
[378577391,1754915467475,-151.0,0.00020219,2]
[378577392,1754915467484,-538.283317,0.00020219,2]
[378577393,1754915467495,-538.283317,0.00020219,2]
[378577394,1754915467505,-151.0,0.00020219,2]
[378577395,1754915467515,-151.0,0.00020219,2]
[378577396,1754915467525,-151.0,0.00020219,2]
[378577397,1754915467534,-175.37584,0.00020219,2]
[378577398,1754915467543,-175.37584,0.00020219,2]
[378577399,1754915467553,-231.9940742,0.00020263,2]
[378577400,1754915467564,-527.9539256,0.00020263,2]
[378577401,1754915467575,-160.0,0.00020263,2]
[378577402,1754915467585,-160.0,0.00020263,2]
[378577403,1754915467595,-160.0,0.00020263,2]
[378577404,1754915467604,-215.4905783,0.00020263,2]
[378577405,1754915467615,-417.15472785,0.00020263,2]
[378577406,1754915467625,-160.0,0.00020263,2]
[378577407,1754915467634,-160.0,0.00020263,2]
[378577408,1754915467644,-843.18994796,0.00020263,2]
[378577409,1754915467653,-160.0,0.00020263,2]
[378577410,1754915467663,-216.68257536,0.00020263,2]
[378577411,1754915467672,-160.0,0.00020271,2]
[378577412,1754915467681,-160.0,0.00020271,2]
[378577413,1754915467691,-12671.21867243,0.00020272,2]
[378577414,1754915467700,-160.0,0.00020272,2]
[378577415,1754915467710,-200.0,0.00020286,2]
[378577416,1754915467719,-348.8156515,0.00020286,2]
[378577417,1754915467728,-460.0,0.00020287,2]
[378577418,1754915467738,-460.0,0.00020287,2]
[378577419,1754915467748,-460.0,0.00020287,2]
[378577420,1754915467758,-783.23,0.00020287,2]
[378577421,1754915467767,-460.0,0.00020287,2]
[378577422,1754915467776,-965.6,0.00020287,2]
[378577423,1754915467786,-460.0,0.00020287,2]
[378577424,1754915467795,-460.0,0.00020287,2]
[378577425,1754915467805,-460.0,0.00020287,2]
[378577426,1754915467814,-460.0,0.00020287,2]
[378577427,1754915467824,-460.0,0.00020287,2]
[378577428,1754915467834,-460.0,0.00020287,2]
[378577429,1754915467843,-396.68883519,0.00020287,2]
[378577430,1754915467853,-460.0,0.00020287,2]
[378577431,1754915467862,-546.96241014,0.00020287,2]
[378577432,1754915467871,-460.0,0.00020287,2]
[378577433,1754915467881,-460.0,0.00020287,2]
[378577434,1754915467890,-460.0,0.00020287,2]
[378577435,1754915467899,-181.366461,0.00020287,2]
[378577436,1754915467910,-500.0,0.00020287,2]
[378577437,1754915467924,-460.0,0.00020287,2]
[378577438,1754915467933,-460.0,0.00020287,2]
[378577439,1754915467943,-460.0,0.00020287,2]
[378577440,1754915467953,-460.0,0.00020287,2]
[378577441,1754915467963,-460.0,0.00020287,2]
[378577442,1754915467973,-460.0,0.00020287,2]
[378577443,1754915467982,-402.053,0.00020287,2]
[378577444,1754915467992,-460.0,0.00020287,2]
[378577445,1754915468002,-477.04698681,0.00020287,2]
[378577446,1754915468012,-402.053,0.00020287,2]
[378577447,1754915468022,-460.0,0.00020287,2]
[378577448,1754915468031,-460.0,0.00020287,2]
[378577449,1754915468040,-504.22,0.00020287,2]
[378577450,1754915468050,-460.0,0.00020287,2]
[378577451,1754915468060,-1343.64,0.00020287,2]
[378577452,1754915468069,-151.0,0.00020287,2]
[378577453,1754915468079,-578.05,0.00020287,2]
[378577454,1754915468089,-460.0,0.00020287,2]
[378577455,1754915468099,-460.0,0.00020287,2]
[378577456,1754915468108,-262.48677597,0.00020287,2]
[378577457,1754915468118,-460.0,0.00020287,2]
[378577458,1754915468127,-460.0,0.00020287,2]
[378577459,1754915468137,-460.0,0.00020287,2]
[378577460,1754915468147,-731.21,0.00020287,2]
[378577461,1754915468157,-460.0,0.00020287,2]
[378577462,1754915468166,-460.0,0.00020287,2]
[378577463,1754915468176,-676.34,0.00020287,2]
[378577464,1754915468187,-460.0,0.00020287,2]
[378577465,1754915468197,-460.0,0.00020287,2]
[378577466,1754915468207,-522.32,0.00020287,2]
[378577467,1754915468216,-151.0,0.00020287,2]
[378577468,1754915468225,-461.09988612,0.00020287,2]
[378577469,1754915468235,-460.0,0.00020287,2]
[378577470,1754915468245,-460.0,0.00020287,2]
[378577471,1754915468255,-460.0,0.00020287,2]
[378577472,1754915468265,-1388.82,0.00020287,2]
[378577473,1754915468274,-468.98994452,0.00020287,2]
[378577474,1754915468284,-460.0,0.00020287,2]
[378577475,1754915468293,-460.0,0.00020287,2]
[378577476,1754915468304,-460.0,0.00020287,2]
[378577477,1754915468314,-856.47,0.00020287,2]
[378577478,1754915468325,-460.0,0.00020287,2]
[378577479,1754915468334,-1001.49,0.00020287,2]
[378577480,1754915468343,-151.0,0.00020287,2]
[378577481,1754915468353,-460.0,0.00020287,2]
[378577482,1754915468363,-460.0,0.00020287,2]
[378577483,1754915468372,-460.0,0.00020287,2]
[378577484,1754915468381,-829.52,0.00020287,2]
[378577485,1754915468391,-1619.3,0.00020287,2]
[378577486,1754915468400,-493.71,0.00020287,2]
[378577487,1754915468409,-460.0,0.00020287,2]
[378577488,1754915468419,-460.0,0.00020287,2]
[378577489,1754915468428,-567.25796512,0.00020287,2]
[378577490,1754915468438,-460.0,0.00020287,2]
[378577491,1754915468449,-1212.26,0.00020287,2]
[378577492,1754915468459,-460.0,0.00020287,2]
[378577493,1754915468469,-505.88,0.00020287,2]
[378577494,1754915468480,-151.0,0.00020287,2]
[378577495,1754915468491,-460.0,0.00020287,2]
[378577496,1754915468500,-487.13,0.00020287,2]
[378577497,1754915468511,-460.0,0.00020287,2]
[378577498,1754915468520,-460.0,0.00020287,2]
[378577499,1754915468530,-151.798505,0.00020287,2]
[378577500,1754915468540,-656.66,0.00020287,2]
[378577501,1754915468549,-460.0,0.00020287,2]
[378577502,1754915468560,-460.0,0.00020287,2]
[378577503,1754915468570,-234.411761,0.00020287,2]
[378577504,1754915468581,-460.0,0.00020287,2]
[378577505,1754915468591,-460.0,0.00020287,2]
[378577506,1754915468601,-516.16,0.00020287,2]
[378577507,1754915468613,-234.411761,0.00020287,2]
[378577508,1754915468622,-460.0,0.00020287,2]
[378577509,1754915468632,-460.0,0.00020287,2]
[378577510,1754915468642,-460.0,0.00020287,2]
[378577511,1754915468652,-460.0,0.00020287,2]
[378577512,1754915468661,-460.0,0.00020287,2]
[378577513,1754915468672,-460.0,0.00020287,2]
[378577514,1754915468682,-685.16,0.00020287,2]
[378577515,1754915468693,-460.0,0.00020287,2]
[378577516,1754915468702,-460.0,0.00020287,2]
[378577517,1754915468712,-790.7,0.00020287,2]
[378577518,1754915468721,-460.0,0.00020287,2]
[378577519,1754915468731,-460.0,0.00020287,2]
[378577520,1754915468741,-349.46136917,0.00020287,2]
[378577521,1754915468751,-855.15,0.00020287,2]
[378577522,1754915468761,-504.94549371,0.00020287,2]
[378577523,1754915468771,-603.45,0.00020287,2]
[378577524,1754915468781,-1640.73,0.00020287,2]
[378577525,1754915468790,-738.19,0.00020287,2]
[378577526,1754915468800,-460.0,0.00020287,2]
[378577527,1754915468809,-460.0,0.00020287,2]
[378577528,1754915468819,-151.0,0.00020287,2]
[378577529,1754915468829,-460.0,0.00020287,2]
[378577530,1754915468838,-1773.37,0.00020287,2]
[378577531,1754915468847,-460.0,0.00020287,2]
[378577532,1754915468857,-430.02938,0.00020287,2]
[378577533,1754915468867,-1415.03,0.00020287,2]
[378577534,1754915468877,-430.02938,0.00020287,2]
[378577535,1754915468886,-460.0,0.00020287,2]
[378577536,1754915468896,-987.91,0.00020287,2]
[378577537,1754915468906,-499.40042012,0.00020287,2]
[378577538,1754915468918,-460.0,0.00020287,2]
[378577539,1754915468928,-460.0,0.00020287,2]
[378577540,1754915468938,-1898.2,0.00020287,2]
[378577541,1754915468947,-822.08,0.00020287,2]
[378577542,1754915468958,-460.0,0.00020287,2]
[378577543,1754915468967,-460.0,0.00020287,2]
[378577544,1754915468976,-460.0,0.00020287,2]
[378577545,1754915468986,-151.0,0.00020287,2]
[378577546,1754915468996,-460.0,0.00020287,2]
[378577547,1754915469006,-151.0,0.00020287,2]
[378577548,1754915469016,-476.92,0.00020287,2]
[378577549,1754915469025,-460.0,0.00020287,2]
[378577550,1754915469035,-151.0,0.00020287,2]
[378577551,1754915469044,-460.0,0.00020287,2]
[378577552,1754915469054,-1167.71,0.00020287,2]
[378577553,1754915469063,-460.0,0.00020287,2]
[378577554,1754915469074,-460.0,0.00020287,2]
[378577555,1754915469084,-460.0,0.00020287,2]
[378577556,1754915469094,-543.4,0.00020287,2]
[378577557,1754915469104,-460.0,0.00020287,2]
[378577558,1754915469115,-151.0,0.00020287,2]
[378577559,1754915469124,-151.0,0.00020287,2]
[378577560,1754915469134,-460.0,0.00020287,2]
[378577561,1754915469144,-656.88,0.00020287,2]
[378577562,1754915469153,-578.06,0.00020287,2]
[378577563,1754915469163,-775.82,0.00020287,2]
[378577564,1754915469173,-738.81,0.00020287,2]
[378577565,1754915469183,-860.33,0.00020287,2]
[378577566,1754915469192,-151.0,0.00020287,2]
[378577567,1754915469202,-905.18,0.00020287,2]
[378577568,1754915469211,-1056.3,0.00020287,2]
[378577569,1754915469221,-460.0,0.00020287,2]
[378577570,1754915469231,-460.0,0.00020287,2]
[378577571,1754915469241,-12761.09,0.00020287,2]
[378577572,1754915469251,-704.43,0.00020287,2]
[378577573,1754915469261,-460.0,0.00020288,2]
[378577574,1754915469270,-328.55990969,0.00020288,2]
[378577575,1754915469280,-464.10291911,0.00020288,2]
[378577576,1754915469290,-460.0,0.00020288,2]
[378577577,1754915469300,-460.0,0.00020288,2]
[378577578,1754915469310,-460.0,0.00020288,2]
[378577579,1754915469506,-355.67000829,0.00020288,2]
[378577580,1754915469516,-531.13,0.00020288,2]
[378577581,1754915469526,-522.72509993,0.00020288,2]
[378577582,1754915469535,-460.0,0.00020288,2]
[378577583,1754915469545,-835.99,0.00020288,2]
[378577584,1754915469555,-460.0,0.00020288,2]
[378577585,1754915469565,-460.0,0.00020288,2]
[378577586,1754915469574,-827.83,0.00020288,2]
[378577587,1754915469584,-460.0,0.00020288,2]
[378577588,1754915469594,-460.0,0.00020288,2]
[378577589,1754915469605,-460.0,0.00020288,2]
[378577590,1754915469614,-460.0,0.00020288,2]
[378577591,1754915469624,-460.0,0.00020288,2]
[378577592,1754915469633,-928.46,0.00020288,2]
[378577593,1754915469643,-592.07,0.00020288,2]
[378577594,1754915469652,-460.0,0.00020288,2]
[378577595,1754915469662,-3875.53,0.00020288,2]
[378577596,1754915469671,-460.0,0.00020288,2]
[378577597,1754915469681,-2004.18,0.00020288,2]
[378577598,1754915469691,-460.0,0.00020288,2]
[378577599,1754915469700,-392.74432696,0.00020288,2]
[378577600,1754915469710,-651.2,0.00020288,2]
[378577601,1754915469725,-460.0,0.00020288,2]
[378577602,1754915469749,-460.0,0.00020288,2]
[378577603,1754915469766,-460.0,0.00020288,2]
[378577604,1754915469777,-779.52,0.00020288,2]
[378577605,1754915469786,-5048.41,0.00020288,2]
[378577606,1754915469797,-461.56,0.00020288,2]
[378577607,1754915469806,-460.0,0.00020288,2]
[378577608,1754915469815,-460.0,0.00020288,2]
[378577609,1754915469824,-554.16,0.00020288,2]
[378577610,1754915469834,-382.458308,0.00020288,2]
[378577611,1754915469843,-382.458308,0.00020288,2]
[378577612,1754915469853,-460.0,0.00020288,2]
[378577613,1754915469863,-644.47,0.00020288,2]
[378577614,1754915469873,-2691.36,0.00020288,2]
[378577615,1754915469882,-1216.52,0.00020288,2]
[378577616,1754915469892,-460.0,0.00020288,2]
[378577617,1754915469901,-151.0,0.00020315,2]
[378577618,1754915469910,-960.61502954,0.00020321,2]
[378577619,1754915469924,-1000.0,0.00020321,2]
[378577620,1754915469935,-1007.45649873,0.00020321,2]
[378577621,1754915469944,-603.34314445,0.00020321,2]
[378577622,1754915469955,-1000.0,0.00020321,2]
[378577623,1754915469964,-1000.0,0.00020321,2]
[378577624,1754915469973,-1000.0,0.00020321,2]
[378577625,1754915469982,-1000.0,0.00020321,2]
[378577626,1754915469993,-186.46352014,0.00020321,2]
[378577627,1754915470002,-1000.0,0.00020321,2]
[378577628,1754915470012,-1000.0,0.00020321,2]
[378577629,1754915470021,-1000.0,0.00020321,2]
[378577630,1754915470030,-1000.0,0.00020321,2]
[378577631,1754915470040,-1000.0,0.00020321,2]
[378577632,1754915470049,-1000.0,0.00020321,2]
[378577633,1754915470058,-1000.0,0.00020321,2]
[378577634,1754915470067,-1000.0,0.00020321,2]
[378577635,1754915470076,-400.0,0.00020321,2]
[378577636,1754915470085,-1000.0,0.00020321,2]
[378577637,1754915470094,-1000.0,0.00020321,2]
[378577638,1754915470103,-1000.0,0.00020321,2]
[378577639,1754915470114,-464.19647516,0.00020321,2]
[378577640,1754915470123,-1000.0,0.00020321,2]
[378577641,1754915470133,-250.0,0.00020321,2]
[378577642,1754915470143,-1000.0,0.00020321,2]
[378577643,1754915470152,-1113.81959935,0.00020321,2]
[378577644,1754915470162,-1000.0,0.00020321,2]
[378577645,1754915470171,-1000.0,0.00020321,2]
[378577646,1754915470180,-1000.0,0.00020321,2]
[378577647,1754915470189,-1000.0,0.00020321,2]
[378577648,1754915470199,-220.72400512,0.00020321,2]
[378577649,1754915470208,-1000.0,0.00020321,2]
[378577650,1754915470218,-1000.0,0.00020321,2]
[378577651,1754915470227,-1000.0,0.00020321,2]
[378577652,1754915470236,-1000.0,0.00020321,2]
[378577653,1754915470245,-500.0,0.00020321,2]
[378577654,1754915470255,-590.92139691,0.00020321,2]
[378577655,1754915470264,-1000.0,0.00020321,2]
[378577656,1754915470273,-1000.0,0.00020321,2]
[378577657,1754915470283,-1000.0,0.00020321,2]
[378577658,1754915470292,-1000.0,0.00020321,2]
[378577659,1754915470301,-1000.0,0.00020321,2]
[378577660,1754915470310,-1012.97111923,0.00020321,2]
[378577661,1754915470320,-1000.0,0.00020321,2]
[378577662,1754915470328,-1000.0,0.00020321,2]
[378577663,1754915470337,-1000.0,0.00020321,2]
[378577664,1754915470345,-1000.0,0.00020321,2]
[378577665,1754915470353,-1000.0,0.00020321,2]
[378577666,1754915470361,-1000.0,0.00020321,2]
[378577667,1754915470370,-1000.0,0.00020321,2]
[378577668,1754915470379,-151.0,0.00020321,2]
[378577669,1754915470388,-460.0,0.00020358,2]
[378577670,1754915470397,-460.0,0.00020358,2]
[378577671,1754915470406,-460.0,0.00020359,2]
[378577672,1754915470416,-473.75,0.00020359,2]
[378577673,1754915470425,-734.57,0.00020359,2]
[378577674,1754915470434,-2255.65,0.00020359,2]
[378577675,1754915470444,-833.49,0.00020359,2]
[378577676,1754915470453,-460.0,0.00020359,2]
[378577677,1754915470463,-460.0,0.00020359,2]
[378577678,1754915470472,-460.0,0.00020359,2]
[378577679,1754915470482,-460.0,0.00020359,2]
[378577680,1754915470491,-640.85,0.00020359,2]
[378577681,1754915470501,-151.0,0.00020362,2]
[378577682,1754915470510,-227.828866,0.00020389,2]
[378577683,1754915470520,-151.0,0.00020389,2]
[378577684,1754915470529,-151.0,0.00020389,2]
[378577685,1754915470538,-151.0,0.00020389,2]
[378577686,1754915470547,-200.325782,0.00020389,2]
[378577687,1754915470557,-200.325782,0.00020389,2]
[378577688,1754915470566,-460.0,0.00020389,2]
[378577689,1754915470575,-460.0,0.00020389,2]
[378577690,1754915470585,-460.0,0.00020389,2]
[378577691,1754915470594,-460.0,0.00020389,2]
[378577692,1754915470604,-981.78,0.00020389,2]
[378577693,1754915470614,-460.0,0.00020389,2]
[378577694,1754915470624,-3530.64,0.00020389,2]
[378577695,1754915470634,-460.0,0.00020389,2]
[378577696,1754915470643,-460.0,0.00020389,2]
[378577697,1754915470652,-3544.45,0.00020389,2]
[378577698,1754915470662,-460.0,0.00020389,2]
[378577699,1754915470671,-151.0,0.0002039,2]
[378577700,1754915470681,-151.0,0.0002039,2]
[378577701,1754915470690,-152.468289,0.0002039,2]
[378577702,1754915470700,-151.0,0.0002039,2]
[378577703,1754915470710,-151.0,0.0002039,2]
[378577704,1754915470720,-427.31556,0.0002039,2]
[378577705,1754915470729,-427.31556,0.0002039,2]
[378577706,1754915470738,-266.471175,0.0002039,2]
[378577707,1754915470747,-266.471175,0.0002039,2]
[378577708,1754915470756,-151.0,0.0002039,2]
[378577709,1754915470766,-332.452599,0.0002039,2]
[378577710,1754915470776,-332.452599,0.0002039,2]
[378577711,1754915470785,-151.0,0.0002039,2]
[378577712,1754915470795,-430.02938,0.0002039,2]
[378577713,1754915470805,-430.02938,0.0002039,2]
[378577714,1754915470824,-538.283317,0.00020391,2]
[378577715,1754915470833,-538.283317,0.00020391,2]
[378577716,1754915470843,-151.0,0.00020391,2]
[378577717,1754915470851,-151.0,0.00020391,2]
[378577718,1754915470861,-151.0,0.00020391,2]
[378577719,1754915470871,-175.37584,0.00020392,2]
[378577720,1754915470880,-175.37584,0.00020392,2]
[378577721,1754915470889,-151.0,0.00020417,2]
[378577722,1754915470898,-151.0,0.00020417,2]
[378577723,1754915470908,-151.0,0.00020419,2]